[Event "*** SCC Grand Prix: Titled Tuesday Blitz"]
[Site "Chess.com"]
[Date "2020.08.25"]
[Round "2"]
[White "ural58"]
[Black "K_A_S_T_O_R"]
[Result "1-0"]
[WhiteElo "2501"]
[BlackElo "2707"]
[TimeControl "180+1"]
[EndTime "10:20:46 PDT"]
[Termination "ural58 won on time"]

1. e4 {[%clk 0:03:00.9]} 1... c5 {[%clk 0:02:57.8]} 2. b3 {[%clk 0:03:00.7]}
2... b6 {[%clk 0:02:55.4]} 3. Bb2 {[%clk 0:02:59.6]} 3... Bb7 {[%clk 0:02:55.9]}
4. Qf3 {[%clk 0:02:59]} 4... Nf6 {[%clk 0:02:51.6]} 5. Nc3 {[%clk 0:02:58.3]}
5... d6 {[%clk 0:02:14.6]} 6. g4 {[%clk 0:02:50.6]} 6... Nc6 {[%clk 0:02:02.9]}
7. O-O-O {[%clk 0:02:47.9]} 7... Nd4 {[%clk 0:01:57.7]} 8. Qg2 {[%clk
0:02:45.8]} 8... h6 {[%clk 0:01:48.8]} 9. f4 {[%clk 0:02:43]} 9... g5 {[%clk
0:01:40.3]} 10. h4 {[%clk 0:02:36.4]} 10... gxf4 {[%clk 0:01:33.6]} 11. g5
{[%clk 0:02:33.7]} 11... Rg8 {[%clk 0:01:33.1]} 12. Nb5 {[%clk 0:02:19.4]} 12...
Ne6 {[%clk 0:01:12.6]} 13. Bxf6 {[%clk 0:02:07.2]} 13... exf6 {[%clk 0:01:12.1]}
14. Nh3 {[%clk 0:01:59.8]} 14... fxg5 {[%clk 0:01:10.3]} 15. hxg5 {[%clk
0:01:58.3]} 15... hxg5 {[%clk 0:01:09.2]} 16. Bc4 {[%clk 0:01:56.3]} 16... a6
{[%clk 0:01:08.4]} 17. Nc3 {[%clk 0:01:56]} 17... Qf6 {[%clk 0:01:05.4]} 18. d4
{[%clk 0:01:31.2]} 18... Nxd4 {[%clk 0:00:54.4]} 19. Rhg1 {[%clk 0:01:00.4]}
19... f3 {[%clk 0:00:46]} 20. Qg4 {[%clk 0:00:53.8]} 20... Bc8 {[%clk
0:00:44.2]} 21. Qg3 {[%clk 0:00:47]} 21... g4 {[%clk 0:00:42.9]} 22. Nd5 {[%clk
0:00:43.8]} 22... Qh6+ {[%clk 0:00:28.6]} 23. Kb1 {[%clk 0:00:42.3]} 23... Kd8
{[%clk 0:00:20.4]} 24. Nhf4 {[%clk 0:00:41.5]} 24... Bg7 {[%clk 0:00:18.7]} 25.
Rh1 {[%clk 0:00:41]} 25... Qg5 {[%clk 0:00:18]} 26. Rh5 {[%clk 0:00:40.7]} 26...
Ne2 {[%clk 0:00:12.5]} 27. Rxg5 {[%clk 0:00:36]} 27... Nxg3 {[%clk 0:00:12.1]}
28. Nxb6 {[%clk 0:00:36.9]} 28... Rb8 {[%clk 0:00:11.6]} 29. Bxf7 {[%clk
0:00:37.1]} 29... Rxb6 {[%clk 0:00:10.3]} 30. Bxg8 {[%clk 0:00:36.3]} 30... Be5
{[%clk 0:00:10.8]} 31. Nd3 {[%clk 0:00:35.1]} 31... Nxe4 {[%clk 0:00:09.2]} 32.
Rxe5 {[%clk 0:00:32.6]} 32... Nc3+ {[%clk 0:00:07.4]} 33. Kc1 {[%clk 0:00:31.5]}
33... Nxd1 {[%clk 0:00:07.5]} 34. Rg5 {[%clk 0:00:28]} 34... f2 {[%clk
0:00:07.4]} 35. Nxf2 {[%clk 0:00:20]} 35... Nxf2 {[%clk 0:00:08.3]} 36. Bd5
{[%clk 0:00:20.1]} 36... Bb7 {[%clk 0:00:06.1]} 37. Bc4 {[%clk 0:00:17.5]} 37...
d5 {[%clk 0:00:05.4]} 38. Rg8+ {[%clk 0:00:18.4]} 38... Kc7 {[%clk 0:00:05.3]}
39. Be2 {[%clk 0:00:19.2]} 39... Re6 {[%clk 0:00:04.6]} 40. Bxg4 {[%clk
0:00:19.4]} 40... Nxg4 {[%clk 0:00:04.3]} 41. Rxg4 {[%clk 0:00:20.3]} 41... Kb6
{[%clk 0:00:04.7]} 42. Kb2 {[%clk 0:00:21.2]} 42... Rd6 {[%clk 0:00:05.2]} 43.
Rg5 {[%clk 0:00:21.4]} 43... d4 {[%clk 0:00:06.1]} 44. a3 {[%clk 0:00:21.9]}
44... Bc6 {[%clk 0:00:06.5]} 45. Rf5 {[%clk 0:00:22]} 45... a5 {[%clk
0:00:06.2]} 46. Rf8 {[%clk 0:00:22.9]} 46... Bd5 {[%clk 0:00:06.3]} 47. a4
{[%clk 0:00:23.1]} 47... c4 {[%clk 0:00:05.3]} 48. Rb8+ {[%clk 0:00:23.8]} 48...
Bb7 {[%clk 0:00:04.6]} 49. bxc4 {[%clk 0:00:23.2]} 49... Kc7 {[%clk 0:00:04.6]}
50. Rg8 {[%clk 0:00:21.6]} 50... Rb6+ {[%clk 0:00:05.1]} 51. Kc1 {[%clk
0:00:20.8]} 51... Rb4 {[%clk 0:00:06]} 52. Rg7+ {[%clk 0:00:21.1]} 52... Kb6
{[%clk 0:00:06.5]} 53. Kd2 {[%clk 0:00:19.9]} 53... Bc6 {[%clk 0:00:07.4]} 54.
Kd3 {[%clk 0:00:20.8]} 54... Rxa4 {[%clk 0:00:07.7]} 55. Kxd4 {[%clk 0:00:20.9]}
55... Bb5 {[%clk 0:00:08.2]} 56. Rg6+ {[%clk 0:00:20.6]} 56... Bc6 {[%clk
0:00:08.5]} 57. c3 {[%clk 0:00:20.3]} 57... Ra2 {[%clk 0:00:08.6]} 58. c5+
{[%clk 0:00:20.7]} 58... Kb7 {[%clk 0:00:08.1]} 59. Rg7+ {[%clk 0:00:21.1]}
59... Kc8 {[%clk 0:00:08.2]} 60. Ke5 {[%clk 0:00:20.1]} 60... Rd2 {[%clk
0:00:07.1]} 61. Ra7 {[%clk 0:00:19.8]} 61... a4 {[%clk 0:00:06.6]} 62. c4 {[%clk
0:00:20.3]} 62... Rd3 {[%clk 0:00:06.1]} 63. Ra6 {[%clk 0:00:16.8]} 63... Kb7
{[%clk 0:00:06.3]} 64. Rb6+ {[%clk 0:00:16.9]} 64... Kc7 {[%clk 0:00:06.6]} 65.
Ra6 {[%clk 0:00:17.5]} 65... Rb3 {[%clk 0:00:07]} 66. Kd4 {[%clk 0:00:16.3]}
66... Rb8 {[%clk 0:00:06.5]} 67. Kc3 {[%clk 0:00:15]} 67... Ra8 {[%clk 0:00:06]}
68. Rb6 {[%clk 0:00:15.3]} 68... a3 {[%clk 0:00:04.7]} 69. Rb1 {[%clk
0:00:15.1]} 1-0

[Event "*** SCC Grand Prix: Titled Tuesday Blitz"]
[Site "Chess.com"]
[Date "2020.08.25"]
[Round "2"]
[White "eightbyeightchess"]
[Black "Roza_Idrisova"]
[Result "1-0"]
[WhiteElo "2432"]
[BlackElo "2206"]
[TimeControl "180+1"]
[EndTime "10:20:50 PDT"]
[Termination "eightbyeightchess won by checkmate"]

1. e4 {[%clk 0:02:59.4]} 1... c6 {[%clk 0:02:59.6]} 2. d4 {[%clk 0:02:58.7]}
2... d5 {[%clk 0:03:00.1]} 3. e5 {[%clk 0:02:59.4]} 3... c5 {[%clk 0:03:00.2]}
4. dxc5 {[%clk 0:02:58.7]} 4... e6 {[%clk 0:03:00.2]} 5. Bd3 {[%clk 0:02:58.6]}
5... Bxc5 {[%clk 0:02:59.8]} 6. Qg4 {[%clk 0:02:58.4]} 6... g6 {[%clk
0:02:57.6]} 7. h4 {[%clk 0:02:56.3]} 7... h5 {[%clk 0:02:57.2]} 8. Qg3 {[%clk
0:02:54.1]} 8... Ne7 {[%clk 0:02:55.6]} 9. Nf3 {[%clk 0:02:54]} 9... Nbc6 {[%clk
0:02:49.7]} 10. Bg5 {[%clk 0:02:53.8]} 10... Qb6 {[%clk 0:02:48.2]} 11. Nbd2
{[%clk 0:02:51.1]} 11... Nf5 {[%clk 0:02:41.6]} 12. Bxf5 {[%clk 0:02:50.4]}
12... exf5 {[%clk 0:02:41.5]} 13. Bf6 {[%clk 0:02:51]} 13... Rg8 {[%clk
0:02:40.6]} 14. O-O {[%clk 0:02:41.5]} 14... Be6 {[%clk 0:02:40.4]} 15. Ng5
{[%clk 0:02:32.3]} 15... Be7 {[%clk 0:02:32.7]} 16. Nxe6 {[%clk 0:02:28]} 16...
fxe6 {[%clk 0:02:28.7]} 17. c4 {[%clk 0:02:28.3]} 17... O-O-O {[%clk 0:02:22.5]}
18. cxd5 {[%clk 0:02:21.9]} 18... Rxd5 {[%clk 0:02:19.9]} 19. Nc4 {[%clk
0:02:22.2]} 19... Qd8 {[%clk 0:02:17.4]} 20. Bxe7 {[%clk 0:02:21.3]} 20... Qxe7
{[%clk 0:02:14.5]} 21. Nd6+ {[%clk 0:02:21.7]} 21... Kb8 {[%clk 0:02:14.3]} 22.
f4 {[%clk 0:02:18.7]} 22... Qc7 {[%clk 0:02:00]} 23. Rfd1 {[%clk 0:02:16.7]}
23... Ne7 {[%clk 0:01:57.9]} 24. Rac1 {[%clk 0:02:05.6]} 24... Rxd1+ {[%clk
0:01:54.7]} 25. Rxd1 {[%clk 0:02:06.5]} 25... Nd5 {[%clk 0:01:54.4]} 26. Qf3
{[%clk 0:01:52.1]} 26... Qc5+ {[%clk 0:01:51.7]} 27. Kh1 {[%clk 0:01:50.7]}
27... Qe3 {[%clk 0:01:40.2]} 28. Qxe3 {[%clk 0:01:37.4]} 28... Nxe3 {[%clk
0:01:39.7]} 29. Rd3 {[%clk 0:01:35.8]} 29... Nd5 {[%clk 0:01:38.9]} 30. g3
{[%clk 0:01:33]} 30... Rg7 {[%clk 0:01:35.8]} 31. Kg2 {[%clk 0:01:27.3]} 31...
Rc7 {[%clk 0:01:34.8]} 32. Kf3 {[%clk 0:01:18.9]} 32... Rc2 {[%clk 0:01:30.4]}
33. Rb3 {[%clk 0:01:04.2]} 33... b6 {[%clk 0:01:29.5]} 34. a4 {[%clk 0:01:04.7]}
34... Kc7 {[%clk 0:01:22.8]} 35. a5 {[%clk 0:01:02.7]} 35... Rc5 {[%clk
0:01:13.7]} 36. axb6+ {[%clk 0:01:01.7]} 36... axb6 {[%clk 0:01:13.6]} 37. Ra3
{[%clk 0:00:49.9]} 37... Ra5 {[%clk 0:01:09.9]} 38. Rxa5 {[%clk 0:00:42.7]}
38... bxa5 {[%clk 0:01:09.7]} 39. Ke2 {[%clk 0:00:43]} 39... Kc6 {[%clk
0:01:09.1]} 40. Kd3 {[%clk 0:00:43.1]} 40... Kc5 {[%clk 0:01:07]} 41. Nb7+
{[%clk 0:00:31.8]} 41... Kb6 {[%clk 0:01:05.3]} 42. Nd8 {[%clk 0:00:31.9]} 42...
Nc7 {[%clk 0:00:57.5]} 43. Kc4 {[%clk 0:00:31.9]} 43... Nd5 {[%clk 0:00:42.8]}
44. Nxe6 {[%clk 0:00:30.8]} 44... Ne3+ {[%clk 0:00:42.7]} 45. Kd4 {[%clk
0:00:26.4]} 45... Nf1 {[%clk 0:00:42.3]} 46. Nf8 {[%clk 0:00:25.1]} 46... Nxg3
{[%clk 0:00:42.1]} 47. e6 {[%clk 0:00:19]} 47... Ne4 {[%clk 0:00:35.6]} 48. Ke5
{[%clk 0:00:18.6]} 48... Kc6 {[%clk 0:00:34.7]} 49. e7 {[%clk 0:00:16]} 49...
Nd6 {[%clk 0:00:34]} 50. Ke6 {[%clk 0:00:14.8]} 50... Ne8 {[%clk 0:00:33.8]} 51.
Nxg6 {[%clk 0:00:12.8]} 51... Nc7+ {[%clk 0:00:29.3]} 52. Kf7 {[%clk 0:00:12.8]}
52... Kd7 {[%clk 0:00:26.7]} 53. Ne5+ {[%clk 0:00:12.4]} 53... Kd6 {[%clk
0:00:26.2]} 54. Nc4+ {[%clk 0:00:11]} 54... Kd5 {[%clk 0:00:24.1]} 55. Nxa5
{[%clk 0:00:10.7]} 55... Ke4 {[%clk 0:00:23.8]} 56. b4 {[%clk 0:00:08.1]} 56...
Kxf4 {[%clk 0:00:17.9]} 57. Nc4 {[%clk 0:00:08.3]} 57... Ke4 {[%clk 0:00:17.1]}
58. b5 {[%clk 0:00:08.7]} 58... Kd4 {[%clk 0:00:15.4]} 59. b6 {[%clk 0:00:08.1]}
59... Nb5 {[%clk 0:00:13.2]} 60. e8=Q {[%clk 0:00:07.8]} 60... Kc5 {[%clk
0:00:13.1]} 61. Qxb5+ {[%clk 0:00:07.2]} 61... Kxb5 {[%clk 0:00:12.9]} 62. b7
{[%clk 0:00:07.8]} 62... Kxc4 {[%clk 0:00:11.8]} 63. b8=Q {[%clk 0:00:08.7]}
63... Kd4 {[%clk 0:00:11.5]} 64. Qf4+ {[%clk 0:00:09.6]} 64... Kd5 {[%clk
0:00:08.8]} 65. Qxf5+ {[%clk 0:00:10.1]} 65... Kd4 {[%clk 0:00:08.8]} 66. Ke6
{[%clk 0:00:09]} 66... Kc4 {[%clk 0:00:07.9]} 67. Qd5+ {[%clk 0:00:08.9]} 67...
Kc3 {[%clk 0:00:07.6]} 68. Ke5 {[%clk 0:00:09.8]} 68... Kb4 {[%clk 0:00:07]} 69.
Ke4 {[%clk 0:00:10.7]} 69... Kc3 {[%clk 0:00:06]} 70. Qc5+ {[%clk 0:00:11]}
70... Kd2 {[%clk 0:00:05.7]} 71. Qa3 {[%clk 0:00:10]} 71... Ke2 {[%clk
0:00:04.9]} 72. Qb2+ {[%clk 0:00:10.2]} 72... Kf1 {[%clk 0:00:04.3]} 73. Kf3
{[%clk 0:00:10.6]} 73... Kg1 {[%clk 0:00:04.1]} 74. Qg2# {[%clk 0:00:10.8]} 1-0

[Event "*** SCC Grand Prix: Titled Tuesday Blitz"]
[Site "Chess.com"]
[Date "2020.08.25"]
[Round "2"]
[White "ljuks68"]
[Black "politeplayer"]
[Result "1-0"]
[WhiteElo "2433"]
[BlackElo "2208"]
[TimeControl "180+1"]
[EndTime "10:20:52 PDT"]
[Termination "ljuks68 won by checkmate"]

1. e4 {[%clk 0:03:00.9]} 1... e6 {[%clk 0:02:58.5]} 2. d4 {[%clk 0:03:00.2]}
2... d5 {[%clk 0:02:59]} 3. Nc3 {[%clk 0:03:00.6]} 3... dxe4 {[%clk 0:02:59.4]}
4. Nxe4 {[%clk 0:02:59.9]} 4... Nd7 {[%clk 0:02:59.9]} 5. Nf3 {[%clk 0:02:59.4]}
5... Ngf6 {[%clk 0:03:00.4]} 6. Bg5 {[%clk 0:02:59.5]} 6... c5 {[%clk
0:02:55.4]} 7. dxc5 {[%clk 0:02:39]} 7... Qa5+ {[%clk 0:02:54.1]} 8. Bd2 {[%clk
0:02:38.2]} 8... Qc7 {[%clk 0:02:51]} 9. Nd6+ {[%clk 0:02:26.4]} 9... Bxd6
{[%clk 0:02:48.3]} 10. cxd6 {[%clk 0:02:26.2]} 10... Qxd6 {[%clk 0:02:48]} 11.
Be2 {[%clk 0:02:26.5]} 11... Ne4 {[%clk 0:02:41.6]} 12. O-O {[%clk 0:02:14.6]}
12... Nxd2 {[%clk 0:02:40.6]} 13. Qxd2 {[%clk 0:02:14.3]} 13... Qxd2 {[%clk
0:02:40]} 14. Nxd2 {[%clk 0:02:14]} 14... Nb6 {[%clk 0:02:30.7]} 15. c4 {[%clk
0:02:09.3]} 15... Bd7 {[%clk 0:02:27.3]} 16. b4 {[%clk 0:02:04.8]} 16... Rc8
{[%clk 0:02:18.7]} 17. Ne4 {[%clk 0:01:50.1]} 17... Ke7 {[%clk 0:02:05.6]} 18.
c5 {[%clk 0:01:49.5]} 18... Nd5 {[%clk 0:02:01.4]} 19. a3 {[%clk 0:01:45.2]}
19... Bc6 {[%clk 0:01:56.1]} 20. Nd6 {[%clk 0:01:07.1]} 20... Rc7 {[%clk
0:01:53.2]} 21. Rfc1 {[%clk 0:00:55.9]} 21... Nf4 {[%clk 0:01:44.2]} 22. Bf1
{[%clk 0:00:55.5]} 22... Rd8 {[%clk 0:01:37.7]} 23. g3 {[%clk 0:00:54.4]} 23...
Ng6 {[%clk 0:01:29.7]} 24. f4 {[%clk 0:00:53.7]} 24... e5 {[%clk 0:01:20.2]} 25.
f5 {[%clk 0:00:42.4]} 25... Nh8 {[%clk 0:01:14.4]} 26. Bg2 {[%clk 0:00:33.8]}
26... Bxg2 {[%clk 0:01:07.7]} 27. Kxg2 {[%clk 0:00:33.3]} 27... f6 {[%clk
0:01:08]} 28. Rd1 {[%clk 0:00:25.8]} 28... Nf7 {[%clk 0:01:02.9]} 29. Nxf7
{[%clk 0:00:25.4]} 29... Rxd1 {[%clk 0:01:03.3]} 30. Rxd1 {[%clk 0:00:25.3]}
30... Kxf7 {[%clk 0:01:02.3]} 31. Kf3 {[%clk 0:00:20.7]} 31... Ke7 {[%clk
0:01:00.8]} 32. Ke4 {[%clk 0:00:20]} 32... a6 {[%clk 0:00:58.5]} 33. Rd6 {[%clk
0:00:18.6]} 33... h5 {[%clk 0:00:34.5]} 34. h3 {[%clk 0:00:16.9]} 34... Rc8
{[%clk 0:00:30.5]} 35. g4 {[%clk 0:00:15.5]} 35... hxg4 {[%clk 0:00:29.4]} 36.
hxg4 {[%clk 0:00:15.6]} 36... Rc7 {[%clk 0:00:27.5]} 37. g5 {[%clk 0:00:15.5]}
37... fxg5 {[%clk 0:00:24.1]} 38. Kxe5 {[%clk 0:00:14.9]} 38... Kf7 {[%clk
0:00:23]} 39. Rg6 {[%clk 0:00:12.5]} 39... Re7+ {[%clk 0:00:21.6]} 40. Kd4
{[%clk 0:00:12.1]} 40... Rd7+ {[%clk 0:00:20.2]} 41. Ke4 {[%clk 0:00:10.7]}
41... Re7+ {[%clk 0:00:19.9]} 42. Kf3 {[%clk 0:00:10.2]} 42... Rd7 {[%clk
0:00:19.8]} 43. Rb6 {[%clk 0:00:09.8]} 43... Rd3+ {[%clk 0:00:17.2]} 44. Kg4
{[%clk 0:00:09.6]} 44... Rxa3 {[%clk 0:00:14.9]} 45. Kxg5 {[%clk 0:00:10]} 45...
Re3 {[%clk 0:00:12.6]} 46. Kf4 {[%clk 0:00:10]} 46... Re7 {[%clk 0:00:12.1]} 47.
Rd6 {[%clk 0:00:08.2]} 47... Rc7 {[%clk 0:00:11.6]} 48. Kg5 {[%clk 0:00:08.2]}
48... Re7 {[%clk 0:00:11.3]} 49. Rb6 {[%clk 0:00:08.1]} 49... Rc7 {[%clk
0:00:11.4]} 50. Kf4 {[%clk 0:00:08.2]} 50... a5 {[%clk 0:00:10.6]} 51. bxa5
{[%clk 0:00:06.9]} 51... Kf8 {[%clk 0:00:10.3]} 52. c6 {[%clk 0:00:05]} 52...
bxc6 {[%clk 0:00:08.9]} 53. a6 {[%clk 0:00:05.1]} 53... Ra7 {[%clk 0:00:07.5]}
54. Rxc6 {[%clk 0:00:03.8]} 54... Ke7 {[%clk 0:00:07.8]} 55. Ke5 {[%clk
0:00:03.8]} 55... Kf7 {[%clk 0:00:06.5]} 56. Rb6 {[%clk 0:00:03.7]} 56... Re7+
{[%clk 0:00:06.1]} 57. Kf4 {[%clk 0:00:02.8]} 57... Ra7 {[%clk 0:00:06.1]} 58.
Rb7+ {[%clk 0:00:02.7]} 58... Kf6 {[%clk 0:00:06.1]} 59. Rxa7 {[%clk 0:00:02.3]}
59... g6 {[%clk 0:00:06.3]} 60. Rb7 {[%clk 0:00:02.3]} 60... g5+ {[%clk
0:00:06.2]} 61. Kg4 {[%clk 0:00:01.8]} 61... Ke5 {[%clk 0:00:06.2]} 62. Re7+
{[%clk 0:00:01.9]} 62... Kf6 {[%clk 0:00:05.7]} 63. Re8 {[%clk 0:00:02]} 63...
Kf7 {[%clk 0:00:05.7]} 64. Re6 {[%clk 0:00:02.7]} 64... Kf8 {[%clk 0:00:05.5]}
65. a7 {[%clk 0:00:03.6]} 65... Kf7 {[%clk 0:00:05.9]} 66. a8=Q {[%clk
0:00:04.5]} 66... Kg7 {[%clk 0:00:05.8]} 67. Qa7+ {[%clk 0:00:05.4]} 67... Kg8
{[%clk 0:00:05.8]} 68. Rb6 {[%clk 0:00:06.3]} 68... Kh8 {[%clk 0:00:05]} 69.
Rb8# {[%clk 0:00:07.2]} 1-0

[Event "*** SCC Grand Prix: Titled Tuesday Blitz"]
[Site "Chess.com"]
[Date "2020.08.25"]
[Round "2"]
[White "Brave_spirit12"]
[Black "VincentKeymer"]
[Result "1-0"]
[WhiteElo "2528"]
[BlackElo "2797"]
[TimeControl "180+1"]
[EndTime "10:20:54 PDT"]
[Termination "Brave_spirit12 won by checkmate"]

1. e4 {[%clk 0:03:00.5]} 1... c6 {[%clk 0:02:59.5]} 2. Nc3 {[%clk 0:03:00.1]}
2... d5 {[%clk 0:03:00.4]} 3. Nf3 {[%clk 0:03:00.9]} 3... dxe4 {[%clk
0:03:00.6]} 4. Nxe4 {[%clk 0:03:01.8]} 4... Nf6 {[%clk 0:03:01.4]} 5. Nxf6+
{[%clk 0:03:00.2]} 5... exf6 {[%clk 0:03:02.3]} 6. d4 {[%clk 0:03:01]} 6... Bd6
{[%clk 0:03:02.3]} 7. c3 {[%clk 0:03:01.2]} 7... O-O {[%clk 0:03:01.9]} 8. Bd3
{[%clk 0:03:01.3]} 8... Re8+ {[%clk 0:03:01.8]} 9. Be3 {[%clk 0:03:01.6]} 9...
Nd7 {[%clk 0:02:59.6]} 10. Qc2 {[%clk 0:03:01.2]} 10... Nf8 {[%clk 0:02:59]} 11.
O-O-O {[%clk 0:03:00.1]} 11... a5 {[%clk 0:02:58.7]} 12. h4 {[%clk 0:02:58.9]}
12... a4 {[%clk 0:02:56.4]} 13. h5 {[%clk 0:02:55.4]} 13... a3 {[%clk
0:02:56.4]} 14. b3 {[%clk 0:02:54.4]} 14... b5 {[%clk 0:02:53.3]} 15. Nh4 {[%clk
0:02:48.3]} 15... Bg4 {[%clk 0:02:45.6]} 16. Rde1 {[%clk 0:02:43.6]} 16... Bxh5
{[%clk 0:02:44.5]} 17. Nf5 {[%clk 0:02:43.6]} 17... Bg6 {[%clk 0:02:44.4]} 18.
Rh3 {[%clk 0:02:40.6]} 18... b4 {[%clk 0:02:36]} 19. c4 {[%clk 0:02:39.3]} 19...
Bf4 {[%clk 0:02:21.8]} 20. Qd2 {[%clk 0:02:13.3]} 20... Qd7 {[%clk 0:02:00.1]}
21. g4 {[%clk 0:02:02.3]} 21... Bxe3 {[%clk 0:01:49.8]} 22. fxe3 {[%clk
0:01:58.7]} 22... Ne6 {[%clk 0:01:47.1]} 23. Rhh1 {[%clk 0:01:26.2]} 23... Rad8
{[%clk 0:01:44.1]} 24. Ng3 {[%clk 0:01:22.8]} 24... Nxd4 {[%clk 0:01:31.8]} 25.
exd4 {[%clk 0:01:19.2]} 25... Rxe1+ {[%clk 0:01:19.2]} 26. Rxe1 {[%clk
0:01:14.9]} 26... Qxd4 {[%clk 0:01:19]} 27. Nf5 {[%clk 0:01:05.9]} 27... Bxf5
{[%clk 0:01:09.1]} 28. gxf5 {[%clk 0:01:06.8]} 28... h6 {[%clk 0:01:03.4]} 29.
Kc2 {[%clk 0:00:33.9]} 29... Qb2+ {[%clk 0:00:39.9]} 30. Kd1 {[%clk 0:00:34]}
30... Qa1+ {[%clk 0:00:36.7]} 31. Ke2 {[%clk 0:00:31]} 31... Re8+ {[%clk
0:00:35]} 32. Kf2 {[%clk 0:00:31]} 32... Qd4+ {[%clk 0:00:20.8]} 33. Re3 {[%clk
0:00:27.9]} 33... Qf4+ {[%clk 0:00:20.4]} 34. Ke2 {[%clk 0:00:27.8]} 34... Qh2+
{[%clk 0:00:20]} 35. Kd1 {[%clk 0:00:27.6]} 35... Qg1+ {[%clk 0:00:20.3]} 36.
Re1 {[%clk 0:00:26.8]} 36... Qg4+ {[%clk 0:00:20.3]} 37. Kc2 {[%clk 0:00:23.8]}
37... Rd8 {[%clk 0:00:20.2]} 38. Qe3 {[%clk 0:00:20.7]} 38... Qg2+ {[%clk
0:00:14.5]} 39. Re2 {[%clk 0:00:21]} 39... Qh1 {[%clk 0:00:11]} 40. Re1 {[%clk
0:00:19]} 40... Qh2+ {[%clk 0:00:11]} 41. Re2 {[%clk 0:00:19.1]} 41... Qd6
{[%clk 0:00:11.3]} 42. Qe4 {[%clk 0:00:18.8]} 42... c5 {[%clk 0:00:10.9]} 43.
Qd5 {[%clk 0:00:18.3]} 43... Qc7 {[%clk 0:00:10.1]} 44. Qe4 {[%clk 0:00:17.9]}
44... Qg3 {[%clk 0:00:09.1]} 45. Qe3 {[%clk 0:00:16.8]} 45... Qd6 {[%clk
0:00:09.2]} 46. Rd2 {[%clk 0:00:15.7]} 46... h5 {[%clk 0:00:05.5]} 47. Be2
{[%clk 0:00:15.4]} 47... Qxd2+ {[%clk 0:00:05.2]} 48. Qxd2 {[%clk 0:00:16.3]}
48... Rxd2+ {[%clk 0:00:05.9]} 49. Kxd2 {[%clk 0:00:17.2]} 49... g6 {[%clk
0:00:06.8]} 50. Ke3 {[%clk 0:00:16.6]} 50... h4 {[%clk 0:00:03.5]} 51. Ke4
{[%clk 0:00:14.7]} 51... h3 {[%clk 0:00:03.9]} 52. Bf3 {[%clk 0:00:13.3]} 52...
g5 {[%clk 0:00:02.9]} 53. Kd5 {[%clk 0:00:13.2]} 53... h2 {[%clk 0:00:03]} 54.
Kxc5 {[%clk 0:00:11.3]} 54... g4 {[%clk 0:00:03.9]} 55. Bg2 {[%clk 0:00:11.1]}
55... Kg7 {[%clk 0:00:04.8]} 56. Kb6 {[%clk 0:00:11.2]} 56... Kh6 {[%clk
0:00:05.7]} 57. c5 {[%clk 0:00:11.2]} 57... Kg5 {[%clk 0:00:06.6]} 58. c6 {[%clk
0:00:11.7]} 58... Kf4 {[%clk 0:00:07.5]} 59. c7 {[%clk 0:00:12.3]} 59... Kg3
{[%clk 0:00:08.4]} 60. Bh1 {[%clk 0:00:12.8]} 60... Kf2 {[%clk 0:00:09]} 61.
c8=Q {[%clk 0:00:12.8]} 61... g3 {[%clk 0:00:09.9]} 62. Qc5+ {[%clk 0:00:10.5]}
62... Kf1 {[%clk 0:00:09.6]} 63. Qe3 {[%clk 0:00:09.9]} 63... g2 {[%clk
0:00:07.4]} 64. Qf3+ {[%clk 0:00:10.1]} 64... Ke1 {[%clk 0:00:08.3]} 65. Qxg2
{[%clk 0:00:09.7]} 65... Kd1 {[%clk 0:00:07.9]} 66. Qxh2 {[%clk 0:00:10]} 66...
Kc1 {[%clk 0:00:08.8]} 67. Be4 {[%clk 0:00:09.4]} 67... Kd1 {[%clk 0:00:08.3]}
68. Qf2 {[%clk 0:00:09.5]} 68... Kc1 {[%clk 0:00:07.8]} 69. Qc2# {[%clk
0:00:10.4]} 1-0